fUST/lending_fUST_20250610
["ID","MTS","AMOUNT","RATE_DAILY","PERIOD"]
[365214261,1749538237355,-521.34835705,0.00021643,4]
[365214262,1749538237365,-460.0,0.00021643,4]
[365214263,1749538237375,-539.76110086,0.00021643,4]
[365214264,1749538237385,-460.0,0.00021643,4]
[365214265,1749538237395,-535.7082571,0.00021643,4]
[365214266,1749538237404,-460.0,0.00021643,4]
[365214267,1749538237414,-460.0,0.00021643,4]
[365214268,1749538237424,-592.30420258,0.00021643,4]
[365214269,1749538237434,-460.0,0.00021643,4]
[365214270,1749538237445,-460.0,0.00021643,4]
[365214272,1749538237456,-460.0,0.00021643,4]
[365214273,1749538237468,-460.0,0.00021643,4]
[365214274,1749538237481,-460.0,0.00021643,4]
[365214276,1749538237492,-460.0,0.00021643,4]
[365214277,1749538237507,-460.0,0.00021643,4]
[365214279,1749538237516,-460.0,0.00021643,4]
[365214280,1749538237526,-460.0,0.00021643,4]
[365214281,1749538237535,-460.0,0.00021643,4]
[365214282,1749538237545,-460.0,0.00021643,4]
[365214283,1749538237555,-460.0,0.00021643,4]
[365214284,1749538237564,-1172.26,0.00021643,4]
[365214285,1749538237575,-460.0,0.00021643,2]
[365214286,1749538237587,-551.2,0.00021643,4]
[365214287,1749538237596,-460.0,0.00021643,4]
[365214288,1749538237606,-252.49848653,0.00021643,4]
[365214289,1749538237615,-460.0,0.00021643,4]
[365214290,1749538237625,-460.0,0.00021643,4]
[365214291,1749538237635,-460.0,0.00021643,4]
[365214292,1749538237644,-278.38,0.00021643,4]
[365214293,1749538237655,-460.0,0.00021643,4]
[365214294,1749538237664,-2641.9,0.00021643,4]
[365214295,1749538237674,-725.02,0.00021643,4]
[365214296,1749538237683,-460.0,0.00021643,4]
[365214297,1749538237693,-460.0,0.00021643,4]
[365214300,1749538237702,-705.61,0.00021643,4]
[365214302,1749538237711,-460.0,0.00021643,4]
[365214304,1749538237721,-460.0,0.00021643,4]
[365214306,1749538237730,-460.0,0.00021643,4]
[365214308,1749538237739,-460.0,0.00021643,4]
[365214310,1749538237748,-460.0,0.00021643,4]
[365214312,1749538237757,-896.77,0.00021643,4]
[365214314,1749538237767,-460.0,0.00021643,4]
[365214316,1749538237776,-745.72,0.00021643,4]
[365214318,1749538237786,-460.0,0.00021643,4]
[365214320,1749538237795,-210.0,0.00021643,4]
[365214343,1749538238011,-460.0,0.00021643,4]
[365214345,1749538238021,-857.76,0.00021643,4]
[365214347,1749538238031,-995.81,0.00021643,4]
[365214349,1749538238041,-460.0,0.00021643,4]
[365214351,1749538238051,-314.70235338,0.00021643,4]
[365214353,1749538238060,-460.0,0.00021643,4]
[365214355,1749538238070,-460.0,0.00021643,4]
[365214357,1749538238079,-460.0,0.00021643,4]
[365214359,1749538238088,-460.0,0.00021643,4]
[365214361,1749538238098,-1721.66,0.00021656,4]
[365214363,1749538238107,-160.0,0.00021696,2]
[365214365,1749538238116,-842.5625,0.00021696,2]
[365214367,1749538238126,-834.9046531,0.00021696,2]
[365214369,1749538238135,-229.6792923,0.00021696,2]
[365214371,1749538238145,-160.0,0.00021696,2]
[365214373,1749538238154,-160.0,0.00021696,2]
[365214375,1749538238163,-424.12530924,0.00021696,2]
[365214377,1749538238172,-355.36,0.000217,2]
[365214379,1749538238181,-160.0,0.000217,2]
[365214381,1749538238191,-500.0,0.00021725,4]
[365214383,1749538238200,-151.0,0.00021725,4]
[365214386,1749538238210,-500.0,0.00021752,4]
[365214388,1749538238219,-151.0,0.00021752,4]
[365214390,1749538238228,-500.0,0.0002178,4]
[365214392,1749538238238,-151.0,0.0002178,4]
[365214394,1749538238248,-255.84847486,0.00021797,6]
[365214396,1749538238258,-500.0,0.00021807,4]
[365214398,1749538238267,-151.0,0.00021807,4]
[365214400,1749538238278,-579.0,0.0002181,7]
[365214402,1749538238289,-168.0,0.00021812,2]
[365214404,1749538238301,-500.0,0.00021835,4]
[365214406,1749538238311,-245.0,0.00021835,4]
[365214408,1749538238320,-1392.0,0.00021846,2]
[365214410,1749538238330,-500.0,0.00021862,4]
[365214412,1749538238340,-500.0,0.00021881,2]
[365214414,1749538238349,-500.0,0.00021889,4]
[365214416,1749538238359,-1516.45029341,0.00021916,4]
[365214419,1749538238379,-205.20970659,0.00021916,4]
[365214421,1749538238389,-500.0,0.00021917,4]
[365214423,1749538238399,-460.0,0.00021917,4]
[365214426,1749538238410,-460.0,0.00021917,4]
[365214428,1749538238419,-133.08725125,0.00021917,4]
[365214483,1749538238946,-460.0,0.00021095,4]
[365214485,1749538238956,-192.66070144,0.00021643,4]
[365214487,1749538238967,-267.33929856,0.00021643,4]
[365214489,1749538238977,-213.1263252,0.00021696,2]
[365214490,1749538238987,-326.91274875,0.00021917,4]
[365214492,1749538238996,-460.0,0.00021917,4]
[365214494,1749538239006,-365.33772431,0.00021917,4]
[365214496,1749538239018,-94.66227569,0.00021917,4]
[365214497,1749538239028,-460.0,0.00021917,4]
[365214498,1749538239038,-460.0,0.00021917,4]
[365214499,1749538239048,-460.0,0.00021917,4]
[365214500,1749538239057,-280.4784662,0.00021917,4]
[365214501,1749538239067,-460.0,0.00021917,4]
[365214502,1749538239076,-460.0,0.00021917,4]
[365214503,1749538239087,-460.0,0.00021917,4]
[365214505,1749538239096,-580.0,0.00021917,4]
[365214507,1749538239106,-160.0,0.00021917,4]
[365214509,1749538239115,-460.0,0.00021917,4]
[365214511,1749538239124,-460.0,0.00021917,4]
[365214513,1749538239134,-460.0,0.00021917,4]
[365214515,1749538239144,-290.0,0.00021917,4]
[365214517,1749538239153,-460.0,0.00021917,4]
[365214519,1749538239162,-460.0,0.00021917,4]
[365214521,1749538239171,-460.0,0.00021917,4]
[365214523,1749538239180,-460.0,0.00021917,4]
[365214535,1749538239298,-200.0,0.00021917,4]
[365214537,1749538239308,-226.94361989,0.00021917,4]
[365214539,1749538239318,-460.0,0.00021917,4]
[365214541,1749538239328,-323.64054586,0.00021917,4]
[365214543,1749538239337,-460.0,0.00021917,4]
[365214545,1749538239347,-460.0,0.00021917,4]
[365214547,1749538239356,-460.0,0.00021917,4]
[365214549,1749538239366,-1172.26,0.00021917,4]
[365214551,1749538239375,-460.0,0.00021917,2]
[365214553,1749538239386,-551.2,0.00021917,4]
[365214556,1749538239396,-460.0,0.00021917,4]
[365214558,1749538239406,-238.75,0.00021917,4]
[365214559,1749538239415,-572.19409214,0.00021917,4]
[365214562,1749538239426,-460.0,0.00021917,4]
[365214564,1749538239438,-460.0,0.00021917,4]
[365214565,1749538239447,-2641.9,0.00021917,4]
[365214567,1749538239457,-725.02,0.00021917,4]
[365214569,1749538239467,-460.0,0.00021917,4]
[365214571,1749538239476,-460.0,0.00021917,4]
[365214573,1749538239486,-705.61,0.00021917,4]
[365214575,1749538239495,-460.0,0.00021917,4]
[365214577,1749538239505,-460.0,0.00021917,4]
[365214580,1749538239515,-460.0,0.00021917,4]
[365214582,1749538239526,-460.0,0.00021917,4]
[365214584,1749538239536,-896.77,0.00021917,4]
[365214586,1749538239545,-460.0,0.00021917,4]
[365214588,1749538239555,-745.72,0.00021917,4]
[365214589,1749538239564,-222.28,0.00021917,4]
[365214590,1749538239574,-347.19683907,0.00021917,4]
[365214591,1749538239588,-857.76,0.00021917,4]
[365214592,1749538239598,-995.81,0.00021917,4]
[365214593,1749538239616,-460.0,0.00021917,4]
[365214594,1749538239626,-460.0,0.00021917,4]
[365214595,1749538239635,-460.0,0.00021917,4]
[365214596,1749538239645,-460.0,0.00021917,4]
[365214597,1749538239654,-460.0,0.00021917,4]
[365214598,1749538239664,-460.0,0.00021917,4]
[365214599,1749538239674,-579.0,0.00021933,7]
[365214600,1749538239683,-500.0,0.00021944,4]
[365214601,1749538239692,-389.47701284,0.00021947,2]
[365214602,1749538239701,-255.84847486,0.00021969,6]
[365214603,1749538239710,-500.0,0.00021972,4]
[365214604,1749538239719,-415.6842856,0.00021999,4]
[365214605,1749538239729,-8163.69678861,0.00022,30]
[365214606,1749538239742,-57114.30321139,0.00022,30]
[365214607,1749538239751,-315.18454239,0.00022,30]
[365214608,1749538239760,-1828.49,0.00022037,2]
[365214609,1749538239770,-579.0,0.00022056,7]
[365214611,1749538239779,-1780.87,0.000221,7]
[365214613,1749538239788,-255.84847486,0.00022141,6]
[365214615,1749538239797,-579.0,0.0002218,7]
[365214617,1749538239807,-1721.66,0.0002219,4]
[365214619,1749538239818,-460.0,0.00022191,4]
[365214621,1749538239828,-260.0,0.00022191,4]
[365214623,1749538239837,-153.84241964,0.00022191,4]
[365214625,1749538239846,-460.0,0.00022191,4]
[365214627,1749538239856,-269.53613733,0.00022191,4]
[365214629,1749538239866,-460.0,0.00022191,4]
[365214631,1749538239875,-460.0,0.00022191,4]
[365214633,1749538239885,-460.0,0.00022191,4]
[365214635,1749538239895,-460.0,0.00022191,4]
[365214636,1749538239904,-460.0,0.00022191,4]
[365214637,1749538239914,-460.0,0.00022191,4]
[365214638,1749538239924,-460.0,0.00022191,4]
[365214639,1749538239934,-460.0,0.00022191,4]
[365214640,1749538239944,-460.0,0.00022191,4]
[365214641,1749538239954,-460.0,0.00022191,4]
[365214642,1749538239963,-460.0,0.00022191,4]
[365214643,1749538239973,-460.0,0.00022191,4]
[365214644,1749538239982,-460.0,0.00022191,4]
[365214646,1749538239991,-460.0,0.00022191,4]
[365214648,1749538240001,-165.3071307,0.00022191,4]
[365214650,1749538240010,-460.0,0.00022191,4]
[365214652,1749538240020,-1172.26,0.00022191,4]
[365214654,1749538240030,-460.0,0.00022191,2]
[365214656,1749538240040,-551.2,0.00022191,4]
[365214658,1749538240049,-460.0,0.00022191,4]
[365214660,1749538240059,-460.0,0.00022191,4]
[365214662,1749538240068,-460.0,0.00022191,4]
[365214664,1749538240078,-2641.9,0.00022191,4]
[365214666,1749538240087,-725.02,0.00022191,4]
[365214668,1749538240096,-460.0,0.00022191,4]
[365214670,1749538240106,-460.0,0.00022191,4]
[365214672,1749538240115,-705.61,0.00022191,4]
[365214674,1749538240124,-460.0,0.00022191,4]
[365214676,1749538240134,-460.0,0.00022191,4]
[365214678,1749538240144,-600.0,0.00022191,4]
[365214680,1749538240153,-400.0,0.00022191,4]
[365214682,1749538240162,-896.77,0.00022191,4]
[365214684,1749538240171,-400.0,0.00022191,4]
[365214686,1749538240180,-745.72,0.00022191,4]
[365214688,1749538240189,-857.76,0.00022191,4]
[365214690,1749538240199,-995.81,0.00022191,4]
[365214692,1749538240208,-386.9046431,0.00022191,4]
[365214694,1749538240217,-460.0,0.00022191,4]
[365214696,1749538240226,-460.0,0.00022191,4]
[365214698,1749538240236,-460.0,0.00022191,4]
[365214700,1749538240245,-460.0,0.00022191,4]
[365214702,1749538240254,-460.0,0.00022191,4]
[365214704,1749538240263,-581.2758164,0.00022192,2]
[365214706,1749538240273,-309.5761506,0.00022192,2]
[365214707,1749538240282,-309.5232587,0.00022192,2]
[365214709,1749538240294,-509.9919007,0.00022192,2]
[365214711,1749538240304,-160.65084304,0.000222,69]
[365214713,1749538240314,-160.65084302,0.000222,69]
[365214715,1749538240323,-168.0,0.00022207,2]
[365214717,1749538240333,-161.381195,0.00022247,2]
[365214719,1749538240343,-357.0740979,0.00022247,2]
[365214720,1749538240352,-573.244939,0.00022247,2]
[365214722,1749538240361,-579.0,0.00022303,7]
[365214724,1749538240371,-255.84847486,0.00022314,7]
[365214726,1749538240380,-258.63634077,0.00022407,2]
[365214728,1749538240390,-389.47701284,0.00022424,2]
[365214730,1749538240399,-579.0,0.00022426,7]
[365214732,1749538240408,-1248.42,0.00022455,3]
[365214734,1749538240417,-832.28,0.00022455,3]
[365214736,1749538240426,-416.14,0.00022455,3]
[365214738,1749538240435,-460.0,0.00022465,4]
[365214740,1749538240445,-460.0,0.00022465,4]
[365214742,1749538240454,-460.0,0.00022465,4]
[365214743,1749538240463,-560.0,0.00022465,4]
[365214745,1749538240473,-392.2574852,0.00022465,4]
[365214748,1749538240482,-317.70461231,0.00022465,4]
[365214750,1749538240494,-460.0,0.00022465,4]
[365214752,1749538240506,-460.0,0.00022465,4]
[365214753,1749538240515,-320.0,0.00022465,4]
[365214755,1749538240525,-460.0,0.00022465,4]
[365214758,1749538240535,-460.0,0.00022465,4]
[365214760,1749538240544,-460.0,0.00022465,4]
[365214762,1749538240554,-406.0,0.00022465,2]
[365214764,1749538240563,-460.0,0.00022465,4]
[365214765,1749538240573,-460.0,0.00022465,4]
[365214768,1749538240588,-280.0,0.00022465,4]
[365214770,1749538240597,-460.0,0.00022465,4]
[365214772,1749538240608,-460.0,0.00022465,4]
[365214773,1749538240618,-1172.26,0.00022465,4]
[365214774,1749538240630,-460.0,0.00022465,2]
[365214776,1749538240639,-551.2,0.00022465,4]
[365214778,1749538240650,-460.0,0.00022465,4]
[365214780,1749538240660,-460.0,0.00022465,4]
[365214782,1749538240669,-460.0,0.00022465,4]
[365214784,1749538240679,-2641.9,0.00022465,4]
[365214786,1749538240688,-725.02,0.00022465,4]
[365214788,1749538240697,-400.0,0.00022465,4]
[365214790,1749538240707,-527.44259085,0.00022465,4]
[365214792,1749538240716,-705.61,0.00022465,4]
[365214794,1749538240726,-400.0,0.00022465,4]
[365214796,1749538240736,-460.0,0.00022465,4]
[365214798,1749538240746,-896.77,0.00022465,4]
[365214800,1749538240755,-745.72,0.00022465,4]
[365214802,1749538240764,-857.76,0.00022465,4]
[365214804,1749538240774,-995.81,0.00022465,4]
[365214806,1749538240783,-460.0,0.00022465,4]
[365214808,1749538240793,-460.0,0.00022465,4]
[365214810,1749538240802,-390.92330971,0.00022465,4]
[365214812,1749538240812,-557.29404699,0.00022465,4]
[365214814,1749538240822,-255.84847486,0.00022486,7]
[365214816,1749538240831,-168.0,0.00022492,2]
[365214818,1749538240841,-579.0,0.00022549,7]
[365214820,1749538240851,-207.4,0.00022583,2]
[365214822,1749538240860,-160.02203713,0.00022583,2]
[365214824,1749538240869,-5000.0,0.00022583,2]
[365214826,1749538240879,-1688.0,0.00022583,2]
[365214828,1749538240889,-933.09097051,0.00022583,2]
[365214830,1749538240899,-500.0,0.00022583,2]
[365214832,1749538240908,-500.0,0.00022583,2]
[365214834,1749538240917,-500.0,0.00022583,2]
[365214836,1749538240927,-500.0,0.00022583,2]
[365214838,1749538240936,-500.0,0.00022583,2]
[365214840,1749538240946,-500.0,0.00022583,2]
[365214842,1749538240955,-500.0,0.00022583,2]
[365214844,1749538240964,-500.0,0.00022583,2]
[365214846,1749538240973,-500.0,0.00022583,2]
[365214848,1749538240982,-500.0,0.00022583,2]
[365214850,1749538240991,-500.0,0.00022583,2]
[365214852,1749538241001,-500.0,0.00022583,2]
[365214854,1749538241010,-500.0,0.00022583,2]
[365214856,1749538241019,-500.0,0.00022583,2]
[365214858,1749538241029,-500.0,0.00022583,2]
[365214860,1749538241039,-500.0,0.00022583,2]
[365214862,1749538241048,-500.0,0.00022583,2]
[365214864,1749538241057,-500.0,0.00022583,2]
[365214866,1749538241066,-500.0,0.00022583,2]
[365214868,1749538241076,-500.0,0.00022583,2]
[365214870,1749538241085,-500.0,0.00022583,2]
[365214872,1749538241095,-500.0,0.00022583,2]
[365214874,1749538241104,-500.0,0.00022583,2]
[365214876,1749538241113,-500.0,0.00022583,2]
[365214878,1749538241122,-500.0,0.00022583,2]
[365214880,1749538241131,-500.0,0.00022583,2]
[365214882,1749538241141,-500.0,0.00022583,2]
[365214885,1749538241152,-500.0,0.00022583,2]
[365214887,1749538241161,-500.0,0.00022583,2]
[365214889,1749538241171,-565.89407689,0.00022583,2]
[365214891,1749538241180,-500.0,0.00022591,2]
[365214893,1749538241189,-500.0,0.00022591,2]
[365214895,1749538241200,-500.0,0.00022591,2]
[365214897,1749538241209,-500.0,0.00022591,2]
[365214899,1749538241219,-507.91466464,0.00022591,2]
[365214901,1749538241230,-500.0,0.00022591,2]
[365214903,1749538241239,-500.0,0.00022591,2]
[365214905,1749538241249,-43641.15,0.000226,2]
[365214907,1749538241259,-961.48493221,0.00022638,2]
[365214909,1749538241269,-255.84847486,0.00022659,7]
[365214911,1749538241279,-1721.66,0.00022672,4]
[365214913,1749538241288,-579.0,0.00022673,7]
[365214915,1749538241297,-460.0,0.00022739,4]
[365214917,1749538241307,-400.0,0.00022739,4]
[365214919,1749538241317,-400.0,0.00022739,4]
[365214921,1749538241327,-223.16,0.00022739,4]
[365214923,1749538241336,-460.0,0.00022739,4]
[365214925,1749538241346,-480.0,0.00022739,4]
[365214927,1749538241356,-460.0,0.00022739,4]
[365214929,1749538241366,-460.0,0.00022739,4]
[365214931,1749538241375,-460.0,0.00022739,4]
[365214933,1749538241385,-315.8,0.00022739,4]
[365214936,1749538241396,-510.0,0.00022739,4]
[365214938,1749538241405,-460.0,0.00022739,4]
[365214940,1749538241415,-1172.26,0.00022739,4]
[365214942,1749538241424,-460.0,0.00022739,2]
[365214943,1749538241433,-551.2,0.00022739,4]
[365214946,1749538241444,-460.0,0.00022739,4]
[365214948,1749538241454,-460.0,0.00022739,4]
[365214950,1749538241463,-460.0,0.00022739,4]
[365214952,1749538241473,-2641.9,0.00022739,4]
[365214954,1749538241482,-725.02,0.00022739,4]
[365214956,1749538241491,-705.61,0.00022739,4]
[365214958,1749538241502,-460.0,0.00022739,4]
[365214960,1749538241512,-896.77,0.00022739,4]
[365214962,1749538241520,-745.72,0.00022739,4]
[365214964,1749538241531,-857.76,0.00022739,4]
[365214966,1749538241540,-995.81,0.00022739,4]
[365214968,1749538241550,-460.0,0.00022739,4]
[365214970,1749538241559,-460.0,0.00022739,4]
[365214971,1749538241569,-579.0,0.00022796,7]
[365214974,1749538241581,-390.36,0.000228,7]
[365214975,1749538241592,-255.84847486,0.00022831,8]
[365214978,1749538241602,-963.0,0.00022887,2]
[365214980,1749538241612,-2160.0,0.00022887,2]
[365214982,1749538241622,-653.0,0.00022887,2]
[365214983,1749538241631,-405.0,0.00022887,2]
[365214985,1749538241640,-150.125,0.00022887,2]
[365214986,1749538241650,-500.57016739,0.00022888,2]
[365214988,1749538241662,-355.36,0.000229,7]
[365214990,1749538241671,-389.47701284,0.000229,2]
[365214991,1749538241680,-579.0,0.00022919,7]
[365214993,1749538241690,-1721.66,0.0002293,4]
[365214996,1749538241699,-1721.66,0.0002293,4]
[365214998,1749538241708,-1721.66,0.0002293,4]
[365215000,1749538241717,-6307.19504974,0.0002295,7]
[365215001,1749538241727,-6307.19504974,0.0002295,7]
[365215002,1749538241736,-842.5625,0.0002296,7]
[365215003,1749538241746,-1721.66,0.00022972,4]
[365215004,1749538241755,-500.0,0.00022973,2]
[365215005,1749538241764,-500.0,0.00022973,2]
[365215006,1749538241773,-500.0,0.00022973,2]
[365215007,1749538241783,-500.0,0.00022973,2]
[365215008,1749538241792,-504.02227482,0.00022973,2]
[365215009,1749538241801,-600.0,0.00022973,2]
[365215010,1749538241811,-500.0,0.00022973,2]
[365215011,1749538241820,-500.0,0.00022973,2]
[365215013,1749538241921,-1721.66,0.00022984,4]
[365215014,1749538241931,-2437.99,0.00022995,2]
[365215015,1749538241941,-1721.66,0.00022999,4]
[365215016,1749538241950,-1721.66,0.00022999,4]
[365215017,1749538241960,-1721.66,0.00022999,4]
[365215018,1749538241969,-1721.66,0.00022999,4]
[365215019,1749538241979,-1721.66,0.00022999,4]
[365215020,1749538241988,-1721.66,0.00022999,4]
[365215021,1749538241997,-1721.66,0.00022999,4]
[365215022,1749538242007,-1721.66,0.00022999,4]
[365215023,1749538242016,-1721.66,0.00022999,4]
[365215024,1749538242026,-1721.7,0.00022999,4]
[365215025,1749538242036,-240916.76444999,0.00023,20]
[365215026,1749538242044,-151.0,0.00023,7]
[365215027,1749538242054,-151.0,0.00023,10]
[365215028,1749538242064,-255.84847486,0.00023003,8]
[365215029,1749538242073,-460.0,0.00023013,4]
[365215030,1749538242082,-460.0,0.00023013,4]
[365215031,1749538242092,-460.0,0.00023013,4]
[365215032,1749538242101,-374.76501844,0.00023013,4]
[365215033,1749538242110,-460.0,0.00023013,4]
[365215034,1749538242120,-460.0,0.00023013,4]
[365215035,1749538242130,-1172.26,0.00023013,4]
[365215036,1749538242139,-400.0,0.00023013,2]
[365215037,1749538242148,-551.2,0.00023013,4]
[365215038,1749538242158,-460.0,0.00023013,4]
[365215039,1749538242167,-460.0,0.00023013,4]
[365215040,1749538242176,-400.0,0.00023013,4]
[365215041,1749538242186,-2641.9,0.00023013,4]
[365215042,1749538242196,-725.02,0.00023013,4]
[365215043,1749538242205,-705.61,0.00023013,4]
[365215044,1749538242215,-460.0,0.00023013,4]
[365215045,1749538242225,-896.77,0.00023013,4]
[365215046,1749538242234,-745.72,0.00023013,4]
[365215047,1749538242244,-857.76,0.00023013,4]
[365215048,1749538242253,-995.81,0.00023013,4]
[365215049,1749538242263,-227.19728997,0.00023013,4]
[365215050,1749538242273,-460.0,0.00023013,4]
[365215051,1749538242282,-406.0,0.00023043,7]
[365215052,1749538242291,-579.0,0.00023043,7]
[365215053,1749538242301,-744.6,0.00023079,5]
[365215054,1749538242310,-3772.04,0.00023088,3]
[365215055,1749538242319,-163.7222236,0.00023096,2]
[365215056,1749538242329,-1780.87,0.000231,7]
[365215057,1749538242339,-5000.0,0.00023131,2]
[365215058,1749538242349,-500.0,0.00023135,2]
[365215059,1749538242359,-1000.0,0.00023139,2]
[365215060,1749538242369,-1000.0,0.00023139,2]
[365215061,1749538242378,-500.51997198,0.00023139,2]
[365215062,1749538242389,-875.6232858,0.00023139,2]
[365215063,1749538242399,-1000.0,0.00023139,2]
[365215064,1749538242408,-406.0,0.00023166,7]
[365215065,1749538242417,-579.0,0.00023166,7]
[365215066,1749538242427,-600.0,0.00023171,2]
[365215067,1749538242437,-255.84847486,0.00023176,8]
[365215068,1749538242447,-744.6,0.00023179,4]
[365215070,1749538242457,-163.17456,0.00023182,2]
[365215071,1749538242467,-151.0,0.000232,5]
[365215072,1749538242477,-1322.0,0.00023224,2]
[365215073,1749538242487,-744.6,0.00023279,4]
[365215074,1749538242497,-444.97,0.00023287,4]
[365215075,1749538242507,-460.0,0.00023287,4]
[365215076,1749538242516,-460.0,0.00023287,4]
[365215077,1749538242526,-460.0,0.00023287,4]
[365215078,1749538242536,-460.0,0.00023287,4]
[365215079,1749538242545,-1172.26,0.00023287,4]
[365215080,1749538242555,-551.2,0.00023287,4]
[365215081,1749538242565,-460.0,0.00023287,4]
[365215082,1749538242575,-460.0,0.00023287,4]
[365215083,1749538242588,-2641.9,0.00023287,4]
[365215084,1749538242598,-725.02,0.00023287,4]
[365215085,1749538242608,-705.61,0.00023287,4]
[365215086,1749538242618,-349.12388858,0.00023287,4]
[365215087,1749538242629,-896.77,0.00023287,4]
[365215088,1749538242639,-745.72,0.00023287,4]
[365215089,1749538242648,-857.76,0.00023287,4]
[365215090,1749538242658,-995.81,0.00023287,4]
[365215091,1749538242667,-289.5956371,0.00023287,4]
[365215092,1749538242677,-5000.0,0.00023289,3]
[365215093,1749538242686,-406.0,0.00023289,7]
[365215094,1749538242695,-579.0,0.00023289,7]
[365215095,1749538242705,-834.9046531,0.000233,3]
[365215096,1749538242714,-842.5625,0.000233,3]
[365215097,1749538242724,-160.0,0.000233,3]
[365215098,1749538242733,-160.0,0.000233,3]
[365215099,1749538242743,-229.6792923,0.000233,3]
[365215100,1749538242752,-424.12530924,0.000233,3]
[365215101,1749538242761,-255.84847486,0.00023348,9]
[365215102,1749538242770,-744.6,0.00023379,6]
[365215103,1749538242779,-4000.0,0.00023388,3]
[365215104,1749538242787,-423451.28232275,0.000234,2]
[365215105,1749538242802,-424.44298731,0.000234,2]
[365215132,1749538243208,-351.10482789,0.00021095,4]
[365215238,1749538246670,-1726.92649246,0.00020884,6]
[365215281,1749538247109,-0.59898694,0.00020884,6]
[365215916,1749538306203,159.836316,0.00013699,2]
[365215919,1749538325704,-153.0,0.00019476,2]
[365215931,1749538460505,4652.0,0.00024658,120]
[365215932,1749538461752,-3187.0,0.00019281,2]
[365215938,1749538773387,-285.19929943,0.00019088,2]
[365215939,1749538776623,-500.0,0.00019088,2]
[365215940,1749538778889,-258.83449758,0.00019088,2]
[365215941,1749538782052,-419.91669236,0.00019088,2]
[365215942,1749538784255,-195.85382659,0.00019088,2]
[365215943,1749538785853,-157.90957491,0.00019088,2]
[365215944,1749538788523,-170.91839727,0.00019088,2]
[365215945,1749538790878,-259.51324761,0.00019088,2]
[365215946,1749538792456,-279.3271352,0.00019088,2]
[365215947,1749538794906,-318.02843921,0.00019088,2]
[365215948,1749538797472,-173.0428648,0.00019088,2]
[365215949,1749538799083,-353.37798032,0.00019088,2]
[365215951,1749538831872,-206.01501652,0.00018897,2]
[365215952,1749538836738,-226.84863573,0.00018897,2]
[365215953,1749538838863,-241.47574459,0.00018897,2]
[365215954,1749538863350,-311.21466435,0.00018897,2]
[365215955,1749538868271,-241.67029048,0.00018897,2]
[365215956,1749538870376,-388.00765771,0.00018897,2]
[365215957,1749538873116,-280.69122143,0.00018897,2]
[365215958,1749538875099,-3104.07676919,0.00018897,2]
[365215959,1749538875122,-164.90024098,0.00019376,2]
[365215960,1749538875147,-37.263646,0.00019476,2]
[365215961,1749538875171,-1233.0,0.00019476,2]
[365215962,1749538875194,-2486.6130242,0.00019632,2]
[365215963,1749538875216,-160.0,0.0002,20]
[365215964,1749538875970,-285.15117557,0.00020109,2]
[365215965,1749538878669,-14.84882443,0.00020109,2]
[365215966,1749538878692,-300.0,0.00020109,2]